Cogmind - Beta 13 X1 @@@ ROGUE MODE // 2023.11.03 @ 20:14:09 Player: MTF Result: Destroyed by as-09021 with Assembled Blade Performance ------------- Evolutions (0) 0 Regions Visited (2) 400 Robots Destroyed (28) 140 Value Destroyed (593) 593 Prototype IDs (0) 0 Alien Tech Used (0) 0 Bonus (0) 0 TOTAL SCORE: 1133 Bonus ------- None Cogmind --------- Core Integrity 0/250 Matter 191/300 Energy 100/100 System Corruption 3% Temperature Cool (0) Movement Rolling (160) Ox4 Location -10/Mines Parts ------- > --- POWER (1) -------- (None) > --- PROPULSION (2) --- Compact Wheel > --- UTILITY (2) ------ Huge Storage Unit > --- WEAPON (2) ------- (None) > --- INVENTORY (25) --- Light Treads Aluminum Leg Aluminum Leg Medium Matter Pod (0) Seismic Detector Light Assault Rifle Light Assault Rifle Mining Laser Peak State ------------ > --- POWER ------------ Light Ion Engine > --- PROPULSION ------- Light Treads Light Treads > --- UTILITY ---------- Huge Storage Unit Core Shielding > --- WEAPON ----------- Medium Laser Assault Rifle > --- INVENTORY -------- Ion Engine Light Treads Aluminum Leg Aluminum Leg Seismic Detector Assault Rifle Light Assault Rifle Grenade Launcher Grenade Launcher Mining Laser [Rating: 8] Favorites ----------- Power Light Ion Engine Engine Light Ion Engine Propulsion Light Treads Treads Light Treads Leg Aluminum Leg Wheel Compact Wheel Utility Core Shielding Device Seismic Detector Storage Huge Storage Unit Protection Core Shielding Weapon Assault Rifle Energy Gun Medium Laser Ballistic Gun Assault Rifle Launcher Grenade Launcher Build | -11 -10 -10 ------- Run | Jun Mat Min Slots Evolved . | . . . Power . | . . . Propulsion . | . . . Utility . | . . . Weapon . | . . . Parts Attached 25 | 4 11 10 Power 1 | . . 1 Engine 1 | . . 1 Core . | . . . Reactor . | . . . Propulsion 5 | 2 . 3 Treads 2 | 2 . . Leg 2 | . . 2 Wheel 1 | . . 1 Hover . | . . . Flight . | . . . Utility 4 | 1 3 . Device 1 | 1 . . Storage 1 | . 1 . Processor . | . . . Hackware . | . . . Protection 2 | . 2 . Artifact . | . . . Weapon 15 | 1 8 6 Energy Gun 2 | 1 1 . Energy Cannon . | . . . Ballistic Gun 6 | . 3 3 Ballistic Cannon . | . . . Launcher 7 | . 4 3 Special Weapon . | . . . Impact Weapon . | . . . Slashing Weapon . | . . . Piercing Weapon . | . . . Special Melee Weapon . | . . . Unidentified Prototypes . | . . . Parts Lost 11 | . . 11 Power 2 | . . 2 Propulsion 3 | . . 3 Utility 1 | . . 1 Weapon 5 | . . 5 Highest Loss Streak 8 | . . 8 To Critical Strikes . | . . . Average Slot Usage (%) 99 | . 99 98 Engine 13 | . 14 13 Treads 27 | . 28 27 Storage 14 | . 14 14 Protection 12 | . 12 14 Energy Gun 9 | . 12 . Ballistic Gun 16 | . 12 24 Launcher 2 | . 2 2 Naked Turns . | . . . Heaviest Build 91 | 13 90 91 Greatest Support 40 | 40 40 40 Greatest Overweight (x) 5 | . 2 5 Average Overweight (x) . | . . 2 Largest Inventory Capacity 25 | 8 25 25 Average Capacity 18 | 8 17 25 Most Carried 11 | 6 11 11 Average Carried 8 | 6 8 9 Final Capacity 25 | 8 25 25 Final Carried 11 | 6 11 8 Class Distribution -------------------- 100% | Mutant Dominant Class ---------------- Mutant | -10/Materials Mutant | -10/Mines Resources | -11 -10 -10 ----------- Run | Jun Mat Min Matter Collected 712 | 256 243 213 Remotely . | . . . Salvage Created 852 | 134 505 213 Parts 60 | 11 39 10 Haulers Intercepted 1 | . 1 . Recyclers Shooed 3 | . 3 . Parts Field Recycled . | . . . Retrieved Matter . | . . . Parts Self-Destructed . | . . . Prevented . | . . . Kills | -11 -10 -10 ------- Run | Jun Mat Min Combat Hostiles Destroyed 14 | . 10 4 Guns 5 | . 4 1 AOE 9 | . 6 3 Classes Destroyed 8 | 2 5 1 Worker 3 | . 2 1 Builder 1 | . 1 . Tunneler 2 | 2 . . Hauler 1 | . 1 . Recycler 5 | 1 2 2 Watcher 2 | . 2 . Swarmer 2 | . . 2 Grunt 12 | . 10 2 Best Kill Streak 4 | 2 4 4 Combat Bots Only 4 | . 2 4 Max Kills in Single Turn 3 | 1 3 2 Gunslinging . | . . . Exploded 2 | . 2 1 Melee . | . . . Uniques/NPCs Destroyed . | . . . Combat | -11 -10 -10 -------- Run | Jun Mat Min Damage Taken 1231 | . 361 870 Core 269 | . 38 231 Absorbed by Shields . | . . . Redirected to Shielding 52 | . 8 44 Regen/Repaired (Parts) 43 | . 43 . Core Remaining (%) 100 | 100 . . Volleys Fired 75 | 4 47 24 Largest 2 | 2 2 2 Hottest 70 | 40 70 40 Shots Fired 140 | 8 89 43 Gun 119 | 8 72 39 Cannon . | . . . Launcher 21 | . 17 4 Special . | . . . Kinetic 83 | 8 36 39 Thermal 36 | . 36 . Explosive 21 | . 17 4 Electromagnetic . | . . . Robot Hit Streak 16 | 3 16 6 Robot Miss Streak 3 | 1 3 3 Penetration Max . | . . . Secondary Targets . | . . . Shots Hit Robots 86 | 4 55 27 Core Hits 50 | 3 35 12 Critical Kills 1 | . 1 . Critical Parts Destroyed 1 | . . 1 Critical Strikes 2 | . 1 1 Destroy 2 | . 1 1 Melee Attacks . | . . . Impact . | . . . Slashing . | . . . Piercing . | . . . Sneak Attacks . | . . . Combat Hostiles . | . . . Follow-up Attacks . | . . . Damage Inflicted 2282 | 56 1528 698 Guns 1031 | 56 631 344 Cannons . | . . . Explosions 1222 | . 868 354 Melee . | . . . Ramming 29 | . 29 . Kinetic 731 | 56 331 344 Thermal 375 | . 300 75 Explosive 1147 | . 868 279 Electromagnetic . | . . . Impact . | . . . Slashing . | . . . Piercing . | . . . Highest Corruption 3 | . . 3 Average Corruption 3 | . . 3 Corruption Purged . | . . . Corruption Blocked . | . . . Overload Shots . | . . . Overflow Damage 38 | . . 38 Projectiles . | . . . Explosions 38 | . . 38 Melee . | . . . Knockbacks . | . . . Impact . | . . . Kinetic . | . . . Secondary . | . . . Self-Inflicted Damage 114 | . 15 99 Shots 4 | . 1 3 Rammed 8 | . 7 1 Targets Rammed 8 | . 7 1 Kicked . | . . . Crushed . | . . . Highest Temperature 132 | . 132 2 Average Temperature 28 | . 28 1 Received Heat Transfer 269 | . 192 77 Siege Activations . | . . . Robots Corrupted . | . . . Combat Hostiles . | . . . Parts Fried . | . . . Impact Corruptions . | . . . Robots Melted . | . . . Combat Hostiles . | . . . Parts Melted . | . . . Heat Transferred 988 | . 888 100 Parts Sabotaged . | . . . Parts Stolen . | . . . Parts Stripped . | . . . Power Chain Reactions . | . . . Missiles Intercepted . | . . . Alert | -11 -10 -10 ------- Run | Jun Mat Min Peak Influence 307 | 15 307 281 Initial 119 | . 9 119 Average 184 | 11 179 252 Maximum Alert Level 1 | . 1 1 Low Security (%) 35 | 100 39 6 Level 1 64 | . 60 93 Level 2 . | . . . Level 3 . | . . . Level 4 . | . . . Level 5 . | . . . High Security . | . . . Max Security . | . . . Squads Dispatched 3 | . 3 . Investigation 1 | . 1 . Extermination . | . . . Reinforcement 2 | . 2 . Assault . | . . . Garrison . | . . . Intercept . | . . . Searches Triggered . | . . . Construction Impeded . | . . . Haulers Reinforced . | . . . Active Scanning Responses . | . . . Cargo Convoy Interrupts . | . . . Stealth | -11 -10 -10 --------- Run | Jun Mat Min Distress Signals 3 | . 2 1 Communications Jammed . | . . . Distress Signals . | . . . Times Spotted 40 | . 15 25 Peak Tracking Total 19 | . 4 19 Tactical Retreats 1 | . 1 . Traps | -11 -10 -10 ------- Run | Jun Mat Min Traps Triggered . | . . . Indirectly . | . . . Trap Hack Attempts . | . . . Triggered . | . . . Disarmed . | . . . Reprogrammed . | . . . Reused . | . . . Traps Extracted . | . . . Installed . | . . . Triggered . | . . . Machines | -11 -10 -10 ---------- Run | Jun Mat Min Machines Disabled 5 | . 3 2 Max in Single Turn 2 | . 2 2 Machines Repaired . | . . . Machines Sabotaged . | . . . Overloaded Fab Kills . | . . . Hacking | -11 -10 -10 --------- Run | Jun Mat Min Machines Accessed 5 | . 5 . Terminals 3 | . 3 . Fabricators . | . . . Repair Stations 1 | . 1 . Recycling Units 1 | . 1 . Scanalyzers . | . . . Garrison Access . | . . . Total Hacks 11 | . 11 . Successful 8 | . 8 . Failed 3 | . 3 . Catastrophic . | . . . Database Lockouts . | . . . Manual 1 | . 1 . Terminals 7 | . 7 . Fabricators . | . . . Repair Stations 2 | . 2 . Recycling Units 2 | . 2 . Scanalyzers . | . . . Garrison Access . | . . . Terminal Hacks 4 | . 4 . Robot Analysis 1 | . 1 . Locate Traps 1 | . 1 . Zone Layout 2 | . 2 . Fabricator Hacks . | . . . Repair Station Hacks 2 | . 2 . Scan Component 1 | . 1 . Repair 1 | . 1 . Recycling Unit Hacks 1 | . 1 . Retrieve Components 1 | . 1 . Scanalyzer . | . . . Garrison Access Hacks . | . . . Unauthorized Hacks 1 | . 1 . Terminals . | . . . Fabricators . | . . . Repair Stations . | . . . Recycling Units 1 | . 1 . Tunnel 1 | . 1 . Scanalyzers . | . . . Garrison Access . | . . . Data Cores Recovered . | . . . Used . | . . . Hacking Detections 4 | . 4 . Full Trace Events . | . . . Feedback Events . | . . . Feedback Blocked . | . . . Robot Schematics Acquired . | . . . Robots Built . | . . . Authchips . | . . . Time . | . . . Total Robot Build Rating . | . . . Part Schematics Acquired . | . . . Parts Built . | . . . Authchips . | . . . Time . | . . . Total Part Build Rating . | . . . Parts Repaired 1 | . 1 . Time 26 | . 26 . Parts Recycled . | . . . Recycled Matter . | . . . Retrieved Matter . | . . . Retrieved Components 3 | . 3 . Parts Scanalyzed . | . . . Part Schematics Acquired . | . . . Parts Damaged . | . . . Bothacking | -11 -10 -10 ------------ Run | Jun Mat Min Used RIF Installer . | . . . Robots Hacked . | . . . Non-combat . | . . . Combat . | . . . Robot Hacks Applied . | . . . Relay Couplers Released . | . . . Fabnet Peak Effective % . | . . . Robots Rewired . | . . . Allies Hacked . | . . . Hacks Repelled . | . . . Allies | -11 -10 -10 -------- Run | Jun Mat Min Total Allies . | . . . Largest Group . | . . . Highest-Rated Group . | . . . Highest-Rated Ally . | . . . Total Orders . | . . . Ally Attacks . | . . . Total Damage . | . . . Kills . | . . . Allies Corrupted . | . . . Allies Melted . | . . . Intel | -11 -10 -10 ------- Run | Jun Mat Min Robot Analysis Total 1 | . 1 . Derelict Logs Recovered . | . . . Drone Launches . | . . . Drone Recoveries . | . . . Exploration | -11 -10 -10 ------------- Run | Jun Mat Min Turns Passed 1146 | 96 747 303 Spaces Moved 335 | 37 231 67 Core . | . . . Treads 312 | 15 231 66 Legs 22 | 22 . . Wheels 1 | . . 1 Hover . | . . . Flight . | . . . Fastest Speed 120 | 120 160 175 Average Speed 232 | 136 223 317 Slowest Speed 320 | 160 320 320 Overloaded Moves . | . . . Propulsion Burnouts . | . . . Robots Hopped . | . . . Cave-ins Triggered . | . . . Exploration Rate (%) 21 | 4 39 21 Regions Visited 2 Branch Regions 1 Pre-discovered Areas 1 | . 1 . Known Exits Taken . | . . . Unknown Exits Taken 2 | 1 1 . Scrap Searched . | . . . Spaces Dug 18 | . . 18 Terrain Destroyed 113 | . 79 34 Melee . | . . . Projectile . | . . . AOE 113 | . 79 34 Terrain Rammed . | . . . Walls Destroyed . | . . . Machines Disabled . | . . . Actions | -11 -10 -10 --------- Run | Jun Mat Min Total 544 | 74 360 110 Wait 89 | 30 54 5 Move 333 | 36 230 67 Hop . | . . . Pick Up 10 | . 7 3 Fast Attach 3 | 1 2 . Attach 6 | . . 6 Detach . | . . . Swap 16 | 3 9 4 Drop 4 | . 4 . Fire 75 | 4 47 24 Melee . | . . . Ram . | . . . Kick . | . . . Crush 8 | . 7 1 Escape Stasis . | . . . Rewire . | . . . Trap . | . . . Miscellaneous . | . . . Route ------- -11/Junkyard -10/Materials (discovered 3 exits: [*Mat] / [*Min] / [Sub]) -10/Mines (discovered 1 exit: [*Mat]) History --------- Turn | Location | Event 1 | -11/Junkyard | Discovered new exit (range 3) 97 | -11/Junkyard | Entered Materials 282 | -10/Materials | Repaired Core Shielding 302 | -10/Materials | Discovered new exit (range 16) 302 | -10/Materials | Discovered new exit (range 19) 305 | -10/Materials | Build established: Mutant 524 | -10/Materials | Discovered new exit (range 13) 844 | -10/Materials | Entered Mines 879 | -10/Mines | Lost 3 parts (1p2w) 904 | -10/Mines | Met a Derelict bent on vengeance 1114 | -10/Mines | Discovered new exit (range 7) 1131 | -10/Mines | Assembled infested the area 1145 | -10/Mines | Core integrity fell below 50% 1147 | -10/Mines | Destroyed by as-09021 with Assembled Blade Last Messages --------------- 01114_ EXIT=FOUND 01131_ ALERT: Infestation in the mines, dispatching Demolisher response squad. 01135_ C-30 ARC bursts open, deploying its payload. 01135_ D-53 Grenadier unfolds itself. 01135_ Lgt. Treads destroyed. 01140_ Assault Rifle destroyed. 01140_ D-53 Grenadier destroyed. 01141_ as-01040 destroyed. 01141_ as-90659 destroyed. 01142_ The unstable cave ceiling collapses. 01143_ D-53 Grenadier destroyed. 01143_ as-34182 destroyed. 01143_ Assault Rifle destroyed. 01144_ as-26543 destroyed. 01144_ Grenade Launcher destroyed. 01144_ System corrupted by crushing effect (+3). 01146_ Aluminum Leg destroyed. 01147_ Ion Engine destroyed. 01147_ Core Shielding destroyed. Map ----- +----------------------------------------------------+ | ?### #### #?????????????? | | ## "## ##?????????????? | | # ### ##??????????????? | | ## ### ##??????????????? | | ?# ### ! ## #???????? | | ?#" "## #??????? | | ?## ### ## #??????? | | ??" " # * ### ##??????? | | ?## "## ###??#######???????? | | ??##"""#### ##??????????????????? | | ???######## #???????????????????? | | ????### #???????????????????? | | ????# ##??????????????????? | | ????# ####???????????????? | | ????# ### ##??????????????? | | ????###??## ###????????????? | | ??????????## ?????? | | ???????????# ## ## ######???????? | | ???????????# #?###??#????????????? | | ???????????# #???????????????????? | | ???????##### #???????????????????? | | ??????## ##??????????????????? | | ?###### ##?????????????????? | | ?# #?????????????????? | | ?# a a #?????????????????? | | ?# a@ # #?????????????????? | | ?# aaa #?????????????????? | | ?# < %% #?????????????????? | | ?# aa ##?????????????????? | | ?####### ##??????????????????? | | ???????### aa#???????????????????? | | ????????? a ???????????????????? | | ????????? aa ??????????????????? | | ????????? ?????????????????? | | ????????? aa ?????????????????? | | ?????????### ????????????????? | | ???????????? ???????????????? | | ???????????? #???????????????? | | ????????????=%! ????????????????? | | ?????????????| ??????????????????? | | ?????????????????????????????????? | | ?????????????????????????????????? | | ?????????????????????????????????? | | ?????????????????????????????????? | | ?????????????????????????????????? | | ?????????????????????????????????? | | ?????????????????????????????????? | | ?????????????????????????????????? | | ?????????????????????????????????? | | ?????????????????????????????????? | +----------------------------------------------------+ Best States ------------- Heat Dissipation 25 Energy Generation 10 Energy Capacity 250 Matter Stores 300 Matter Capacity 300 Sight Range 16 Terrain Scan Density 10 Core Shielding 20 Evasion (%) 55 Recoil Reduction 2 Item Schematics ----------------- None Robot Schematics ------------------ None Fabricated ------------ Nothing Alien Tech Used ----------------- None Achievements -------------- None Challenges ------------ None Game ------ Seed AssaultPowerStorm Manual? 0 Play Time 00:11:14 Cumulative 1502.1 hours Start 2023.11.03 @ 20:02:02 End 2023.11.03 @ 20:14:09 Sessions 1 Manual Loads 0 Difficulty Rogue Special Mode None Game No. 420 Rogue 420 Adventurer 0 Explorer 0 Win Type - Total 88 Types 14/18/17/3/1/2/29/2/2 Lore% 96 Gallery% 97 Achievement% 89 Wizard Run 0 Options --------- ASCII 0 Keyboard 0 Movement Numpad Keybinds 0 Fullscreen 2 Font 24/Smallcaps Map View 76x50 Tactical HUD 1 Map Filters NONE Filters NONE Steam 1 RUN: 2dd1c135-bcb7-40d5-899a-1b15cdbc959c